[Event "2nd Kalyan Dombivali 2019"]
[Site "Kalyan"]
[Date "2019.02.02"]
[Round "9"]
[White "Subramanian, R M"]
[Black "Ramnathan, Balasubramaniam"]
[Result "0-1"]
[ECO "C24"]
[WhiteElo "1780"]
[BlackElo "2191"]
[Annotator "NA"]
[PlyCount "75"]
[EventDate "2019.01.28"]
[EventType "swiss"]
[EventRounds "10"]
[EventCountry "IND"]
[SourceTitle "playchess.com"]
[Source "ChessBase"]
[SourceQuality "1"]
[TimeControl "5400+30"]

{[%evp 23,64,-4,43,32767,32767,39,61,9,3,32767,32767,-30,-8,-41,-29,-35,-30,-21,-43,-68,-38,32767,32767,-66,32767,32767,32767,-60,-51,32767,32767,-61,-72,32767,-54,-54,-45,-38,-17,-70,-30,-195,-202]} 1. e4 {[%emt 0:00:00]} e5 {[%emt 0:00:00]} 2. Bc4 {[%emt 0:00:00]} Nf6 {[%emt 0:00:13]} 3. d3 {[%emt 0:00:00]} Nc6 {[%emt 0:00:18]} 4. Nc3 {[%emt 0:00:00]} Bb4 {[%emt 0:01:57]} 5. Nge2 {[%emt 0:00:00]} d5 {[%emt 0:01:12]} 6. exd5 {[%emt 0:00:00]} Nxd5 {[%emt 0:00:10]} 7. O-O {[%emt 0:00:02]} Be6 {[%emt 0:01:45]} 8. Bb5 {[%emt 0:10:47] C28: Vienna Game: 2...Nf6 3 Bc4 Nc6} (8. Bb3 O-O 9. Kh1 Qd7 10. Ne4 Be7 11. Ng5 Bxg5 12. Bxg5 Nb6 13. Be3 Bxb3 14. axb3 Nd5 15. Nc3 Ndb4 {½-½ (37) Le,Q (2714)-Sethuraman,S (2665) chess.com INT 2019}) 8... Nde7 $146 {[%emt 0:04:50]} ({Predecessor:} 8... Qd7 9. Nxd5 Bxd5 10. c4 Be6 11. d4 a6 12. Qa4 axb5 13. Qxa8+ Nd8 14. d5 Bf5 15. a3 Bd6 16. cxb5 {1-0 (46) Vogt,L (2479)-Greet,A (2439) Fuegen 2006}) 9. f4 {[%emt 0:01:48]} Bd7 {[%emt 0:02:33]} 10. Ng3 {[%emt 0:07:55]} exf4 {[%emt 0:04:37]} 11. Bxf4 {[%emt 0:02:21]} O-O {[%emt 0:00:14]} 12. Bg5 {[%emt 0:04:10]} Nd4 {[%emt 0:04:45]} (12... f6 $11 13. Bc4+ Kh8) 13. Nh5 {[%emt 0:09:08]} (13. Bc4 $14 {keeps the upper hand.}) 13... f5 {[%emt 0:01:28]} 14. Bc4+ {[%emt 0:02:41]} Be6 {[%emt 0:01:09]} 15. Re1 {[%emt 0:07:37]} Bxc4 {[%emt 0:05:12]} 16. dxc4 {[%emt 0:00:11]} Ndc6 {[%emt 0:02:18]} 17. Nd5 {[%emt 0:02:51]} Bxe1 {[%emt 0:01:02]} 18. Qxe1 {[%emt 0:00:06]} Rf7 {[%emt 0:00:29]} 19. Rd1 {[%emt 0:01:44]} Qf8 {[%emt 0:02:05]} 20. Nxc7 {[%emt 0:08:10]} Rd8 {[%emt 0:00:16]} 21. Nd5 {[%emt 0:01:47]} h6 {[%emt 0:09:27]} 22. Bh4 {[%emt 0:01:22]} g5 {[%emt 0:00:50]} 23. Bf2 {[%emt 0:02:24]} Nxd5 {[%emt 0:09:09]} 24. cxd5 {[%emt 0:00:19]} Qd6 {[%emt 0:00:58]} 25. c4 {[%emt 0:03:55]} b6 {[%emt 0:03:18]} 26. Qc3 {[%emt 0:01:36]} Qg6 {[%emt 0:01:07]} 27. Ng3 $1 {[%emt 0:04:59]} f4 {[%emt 0:00:30]} 28. Nf1 {[%emt 0:00:58]} Ne7 {[%emt 0:02:31]} 29. Re1 {[%emt 0:01:09]} Nf5 {[%emt 0:00:13]} 30. b4 {[%emt 0:01:32]} Re7 {[%emt 0:06:52]} 31. Rd1 {[%emt 0:00:41]} Qf7 {[%emt 0:05:34]} 32. Qf3 {[%emt 0:07:11] [#]} ({White should try} 32. a4 $15) 32... Ne3 $19 {[%emt 0:02:11]} 33. Bxe3 {[%emt 0:06:56]} fxe3 {[%emt 0:00:06]} 34. Qe2 {[%emt 0:01:21]} Rf8 {[%emt 0:01:11]} 35. g3 {[%emt 0:01:01]} Qf3 {[%emt 0:01:31]} 36. Qxf3 Rxf3 37. d6 e2 38. dxe7 0-1

[Event "2nd Kalyan Dombivali 2019"]
[Site "Kalyan"]
[Date "2019.02.02"]
[Round "9"]
[White "Javheri, Jaydev"]
[Black "Lund Rachit"]
[Result "1-0"]
[ECO "C55"]
[WhiteElo "1675"]
[BlackElo "1572"]
[Annotator "NA RC"]
[PlyCount "137"]
[EventDate "2019.01.28"]
[EventType "swiss"]
[EventRounds "10"]
[EventCountry "IND"]
[SourceTitle "playchess.com"]
[Source "ChessBase"]
[SourceQuality "1"]
[TimeControl "5400+30"]

1. e4 {[%emt 0:00:00]} e5 {[%emt 0:00:00]} 2. Nf3 {[%emt 0:00:00]} Nc6 {[%emt 0:00:00]} 3. Bc4 {[%emt 0:00:00]} Nf6 {[%emt 0:00:00]} 4. d3 {[%emt 0:00:56]} Be7 {[%emt 0:00:08]} 5. O-O {[%emt 0:00:10]} d6 {[%emt 0:00:12]} 6. h3 {[%emt 0:00:07]} O-O {[%emt 0:01:47]} 7. c3 {[%emt 0:00:20]} h6 {[%emt 0:07:15]} 8. Re1 {[%emt 0:02:57]} Nh7 {[%emt 0:01:43]} 9. d4 {[%emt 0:00:38]} Ng5 {[%emt 0:00:53]} 10. Nxg5 {[%emt 0:09:16]} Bxg5 {[%emt 0:00:51]} 11. d5 {[%emt 0:00:18]} Ne7 {[%emt 0:07:30]} 12. Bxg5 {[%emt 0:01:30]} hxg5 {[%emt 0:00:05]} 13. Nd2 {[%emt 0:00:12]} Ng6 {[%emt 0:00:18]} 14. Nf1 {[%emt 0:02:04]} Nf4 {[%emt 0:04:26]} 15. Ng3 {[%emt 0:00:51]} g6 {[%emt 0:01:17]} 16. Ne2 {[%emt 0:02:48]} Kg7 {[%emt 0:00:41]} 17. Nxf4 {[%emt 0:04:22]} gxf4 {[%emt 0:00:15]} 18. Be2 {[%emt 0:00:21]} Qg5 {[%emt 0:00:17]} 19. Kf1 {[%emt 0:00:54]} Rh8 {[%emt 0:00:15]} 20. Bf3 {[%emt 0:00:20]} Bd7 {[%emt 0:03:25]} 21. Ke2 {[%emt 0:03:14]} Bb5+ {[%emt 0:00:52]} 22. Kd2 {[%emt 0:00:37]} Qh4 {[%emt 0:00:18]} 23. Kc2 {[%emt 0:04:55]} Qxf2+ {[%emt 0:00:35]} 24. Qd2 {[%emt 0:00:10]} Qg3 {[%emt 0:01:31]} 25. b3 {[%emt 0:03:40]} Bd7 {[%emt 0:00:04]} 26. Rf1 {[%emt 0:01:01]} a5 {[%emt 0:00:38]} 27. Qf2 {[%emt 0:01:50]} Qxf2+ {[%emt 0:03:36]} 28. Rxf2 {[%emt 0:00:12]} f5 {[%emt 0:00:04]} 29. Re1 {[%emt 0:04:36]} fxe4 {[%emt 0:00:48]} 30. Bxe4 {[%emt 0:00:08]} Kf6 {[%emt 0:03:45]} 31. g3 {[%emt 0:01:37]} Bxh3 {[%emt 0:02:17]} 32. gxf4 {[%emt 0:00:10]} Bf5 {[%emt 0:00:06]} 33. fxe5+ {[%emt 0:04:01]} dxe5 {[%emt 0:00:13]} 34. Kd2 {[%emt 0:01:09]} Rh5 {[%emt 0:00:52]} 35. c4 {[%emt 0:01:07]} Rah8 {[%emt 0:00:34]} 36. Ree2 {[%emt 0:01:33]} a4 {[%emt 0:01:51]} 37. Kc3 {[%emt 0:03:11]} axb3 {[%emt 0:01:56]} 38. axb3 {[%emt 0:00:15]} Rh3+ {[%emt 0:00:03]} 39. Kb4 {[%emt 0:00:41]} Rg3 {[%emt 0:00:26]} 40. c5 {[%emt 0:07:17]} Rhh3 {[%emt 0:00:36]} 41. Bc2 {[%emt 0:00:55]} Rh4+ {[%emt 0:01:33]} 42. Kb5 {[%emt 0:14:11]} Rd4 {[%emt 0:00:35]} 43. Rd2 {[%emt 0:00:32]} Rxd2 {[%emt 0:00:13]} 44. Rxd2 {[%emt 0:00:29]} Bxc2 {[%emt 0:00:06]} 45. Rxc2 {[%emt 0:01:04]} Rd3 {[%emt 0:01:53]} 46. Rf2+ {[%emt 0:07:44]} Kg7 {[%emt 0:00:37]} 47. Ra2 {[%emt 0:01:13]} Rxd5 {[%emt 0:01:14]} 48. Ra7 {[%emt 0:00:16]} c6+ {[%emt 0:04:16]} 49. Kb6 {[%emt 0:01:41]} Rd7 {[%emt 0:00:02]} 50. b4 {[%emt 0:00:40]} Rd4 {[%emt 0:23:04]} 51. Rxb7+ {[%emt 0:00:46]} Kf6 {[%emt 0:00:06]} 52. Kxc6 {[%emt 0:00:28]} e4 {[%emt 0:00:03]} 53. Rb8 {[%emt 0:03:59]} Ke7 {[%emt 0:00:34]} 54. Rb7+ {[%emt 0:04:18]} Ke6 {[%emt 0:00:16]} 55. Rb8 {[%emt 0:00:34]} Ke7 {[%emt 0:01:52]} 56. Rb7+ {[%emt 0:01:09]} Ke6 {[%emt 0:00:04]} 57. Rb8 {[%emt 0:01:23]} Kf5 {[%emt 0:01:09]} 58. Rf8+ {[%emt 0:00:58]} Kg4 {[%emt 0:00:03]} 59. b5 {[%emt 0:00:14]} e3 {[%emt 0:00:17]} 60. Re8 {[%emt 0:01:07]} Kf3 {[%emt 0:02:00]} 61. b6 {[%emt 0:00:15]} Rb4 {[%emt 0:00:55]} 62. b7 {[%emt 0:00:11]} e2 {[%emt 0:00:24]} 63. Kc7 {[%emt 0:01:28]} g5 {[%emt 0:00:27]} 64. b8=Q Rxb8 65. Kxb8 {[%emt 0:01:52]} g4 {[%emt 0:00:41]} 66. c6 {[%emt 0:00:11]} g3 {[%emt 0:00:21]} 67. c7 {[%emt 0:00:04]} g2 {[%emt 0:00:09]} 68. c8=Q {[%emt 0:00:31]} g1=Q {[%emt 0:00:46]} 69. Qf5+ 1-0

[Event "2nd Kalyan Dombivali 2019"]
[Site "Kalyan"]
[Date "2019.02.02"]
[Round "9"]
[White "Bhat Sanjay"]
[Black "Om Nagnath Lamkane"]
[Result "1-0"]
[ECO "A30"]
[WhiteElo "1597"]
[BlackElo "1400"]
[Annotator "NA RC"]
[PlyCount "73"]
[EventDate "2019.01.28"]
[EventType "swiss"]
[EventRounds "10"]
[EventCountry "IND"]
[SourceTitle "playchess.com"]
[Source "ChessBase"]
[SourceQuality "1"]
[TimeControl "5400+30"]

1. c4 {[%emt 0:00:00]} c5 {[%emt 0:02:09]} 2. g3 {[%emt 0:00:00]} Nc6 {[%emt 0:00:06]} 3. Bg2 {[%emt 0:00:00]} e6 {[%emt 0:00:25]} 4. Nf3 {[%emt 0:00:00]} Nf6 {[%emt 0:00:22]} 5. O-O {[%emt 0:00:02]} Be7 {[%emt 0:00:09]} 6. b3 {[%emt 0:00:06]} O-O {[%emt 0:00:10]} 7. Bb2 {[%emt 0:00:01]} b6 {[%emt 0:00:26]} 8. d4 {[%emt 0:00:24]} d5 {[%emt 0:00:23]} 9. cxd5 {[%emt 0:00:50]} Nxd5 {[%emt 0:04:06]} 10. e4 {[%emt 0:02:13]} Nc7 {[%emt 0:01:00]} 11. dxc5 {[%emt 0:00:44]} Bxc5 {[%emt 0:03:04]} 12. Qc1 {[%emt 0:10:09]} Bb7 {[%emt 0:01:22]} 13. Rd1 {[%emt 0:00:21]} Qe7 {[%emt 0:01:03]} 14. a3 {[%emt 0:00:07]} e5 {[%emt 0:01:02]} 15. b4 {[%emt 0:01:12]} Bd6 {[%emt 0:00:14]} 16. Nc3 {[%emt 0:00:10]} Rac8 {[%emt 0:04:55]} 17. Qe3 {[%emt 0:03:54]} Rfd8 {[%emt 0:05:08]} 18. Rd2 {[%emt 0:01:07]} Ne6 {[%emt 0:07:38]} 19. Nd5 {[%emt 0:01:17]} Qf8 {[%emt 0:02:48]} 20. Rad1 {[%emt 0:08:44]} Bb8 {[%emt 0:08:13]} 21. Nh4 {[%emt 0:10:48]} Ncd4 {[%emt 0:11:43]} 22. Nf3 {[%emt 0:13:14]} Bxd5 {[%emt 0:02:31]} 23. exd5 {[%emt 0:03:27]} Rxd5 {[%emt 0:02:39]} 24. Nxd4 {[%emt 0:08:38]} exd4 {[%emt 0:00:18]} 25. Qb3 {[%emt 0:01:03]} Rd6 {[%emt 0:04:42]} 26. f4 {[%emt 0:00:51]} Rcd8 {[%emt 0:00:33]} 27. f5 {[%emt 0:00:23]} Nc7 {[%emt 0:00:08]} 28. a4 {[%emt 0:07:24]} a6 {[%emt 0:10:49]} 29. b5 {[%emt 0:00:29]} axb5 {[%emt 0:00:26]} 30. axb5 {[%emt 0:00:02]} Qe8 {[%emt 0:01:50]} 31. Bc6 {[%emt 0:03:35]} Qe5 {[%emt 0:00:46]} 32. Qd3 {[%emt 0:05:57]} Nd5 {[%emt 0:08:25]} 33. Bxd4 {[%emt 0:05:39]} Qe7 {[%emt 0:07:46]} 34. Re2 {[%emt 0:01:44]} Qa7 {[%emt 0:02:36]} 35. Ra1 {[%emt 0:02:13]} Nf4 {[%emt 0:01:15]} 36. Rxa7 {[%emt 0:01:35]} Nxd3 {[%emt 0:00:30]} 37. Ra6 {[%emt 0:00:30]} 1-0

[Event "2nd Kalyan Dombivali 2019"]
[Site "Kalyan"]
[Date "2019.02.02"]
[Round "9"]
[White "Vedant Nitin vekhande"]
[Black "Mayekar Ayush"]
[Result "1-0"]
[ECO "C68"]
[WhiteElo "1564"]
[BlackElo "1389"]
[Annotator "NA RC"]
[PlyCount "99"]
[EventDate "2019.01.28"]
[EventType "swiss"]
[EventRounds "10"]
[EventCountry "IND"]
[SourceTitle "playchess.com"]
[Source "ChessBase"]
[SourceQuality "1"]
[TimeControl "5400+30"]

1. e4 {[%emt 0:00:00]} e5 {[%emt 0:00:00]} 2. Nf3 {[%emt 0:00:00]} Nc6 {[%emt 0:00:20]} 3. Bb5 {[%emt 0:00:00]} a6 {[%emt 0:00:17]} 4. Bxc6 {[%emt 0:01:06]} dxc6 {[%emt 0:00:28]} 5. d4 {[%emt 0:00:06]} exd4 {[%emt 0:01:56]} 6. Qxd4 {[%emt 0:00:30]} Qxd4 {[%emt 0:00:40]} 7. Nxd4 {[%emt 0:00:09]} c5 {[%emt 0:01:26]} 8. Ne2 {[%emt 0:00:12]} Be6 {[%emt 0:06:28]} 9. Nbc3 {[%emt 0:00:18]} O-O-O {[%emt 0:06:26]} 10. Be3 {[%emt 0:00:30]} Nf6 {[%emt 0:01:18]} 11. f3 {[%emt 0:00:13]} b6 {[%emt 0:02:39]} 12. Rd1 {[%emt 0:00:21]} Rxd1+ {[%emt 0:06:34]} 13. Kxd1 {[%emt 0:01:25]} g6 {[%emt 0:07:24]} 14. Nf4 {[%emt 0:02:07]} Bh6 {[%emt 0:12:56]} 15. Ke2 {[%emt 0:00:31]} Bxf4 {[%emt 0:13:24]} 16. Bxf4 {[%emt 0:00:12]} Re8 {[%emt 0:09:11]} 17. Rd1 {[%emt 0:00:23]} Nh5 {[%emt 0:02:44]} 18. Be3 {[%emt 0:00:43]} f5 {[%emt 0:02:20]} 19. a3 {[%emt 0:03:22]} fxe4 {[%emt 0:02:50]} 20. Nxe4 {[%emt 0:02:08]} Bf5 {[%emt 0:01:44]} 21. Ng5 {[%emt 0:05:47]} Nf4+ {[%emt 0:02:20]} 22. Kf2 {[%emt 0:00:19]} Nxg2 {[%emt 0:03:20]} 23. Bc1 {[%emt 0:01:51]} Nh4 {[%emt 0:01:46]} 24. c3 {[%emt 0:00:31]} h6 {[%emt 0:03:30]} 25. Nf7 {[%emt 0:01:01]} Bc2 {[%emt 0:06:08]} 26. Rd2 {[%emt 0:00:25]} Rf8 {[%emt 0:01:03]} 27. Ne5 {[%emt 0:01:29]} Be4 {[%emt 0:03:25]} 28. Kg3 {[%emt 0:00:23]} Nf5+ {[%emt 0:00:03]} 29. Kh3 {[%emt 0:00:27]} Bb7 {[%emt 0:00:53]} 30. Nxg6 {[%emt 0:00:35]} Rf6 {[%emt 0:00:17]} 31. Ne5 {[%emt 0:00:47]} Nd6 {[%emt 0:00:30]} 32. Kg3 {[%emt 0:00:30]} Nf7 {[%emt 0:01:04]} 33. f4 {[%emt 0:00:09]} Nxe5 34. fxe5 {[%emt 0:00:06]} Re6 {[%emt 0:00:56]} 35. Re2 {[%emt 0:00:59]} Kd7 {[%emt 0:00:33]} 36. Bf4 {[%emt 0:00:17]} Ke7 {[%emt 0:00:26]} 37. Kf2 {[%emt 0:00:20]} Kf7 {[%emt 0:00:26]} 38. Rd2 {[%emt 0:00:08]} Bc6 {[%emt 0:00:24]} 39. Rd8 {[%emt 0:00:11]} Kg6 {[%emt 0:00:40]} 40. Ke3 {[%emt 0:01:29]} h5 {[%emt 0:00:21]} 41. Rh8 {[%emt 0:00:13]} Bd5 {[%emt 0:00:45]} 42. Rh6+ {[%emt 0:00:11]} Kg7 {[%emt 0:00:31]} 43. Rxh5 {[%emt 0:00:08]} Re8 {[%emt 0:00:26]} 44. h4 {[%emt 0:00:40]} Be6 {[%emt 0:00:30]} 45. Ke4 {[%emt 0:00:38]} Bf7 {[%emt 0:00:35]} 46. Rg5+ {[%emt 0:00:19]} Kf8 {[%emt 0:00:13]} 47. h5 {[%emt 0:00:18]} Ke7 {[%emt 0:00:08]} 48. h6 {[%emt 0:01:20]} Rg8 {[%emt 0:00:24]} 49. h7 {[%emt 0:00:15]} Rxg5 {[%emt 0:01:08]} 50. Bxg5+ {[%emt 0:00:04]} 1-0

[Event "2nd Kalyan Dombivali 2019"]
[Site "Kalyan"]
[Date "2019.02.02"]
[Round "9"]
[White "Kshatriya Nitin Vekhande"]
[Black "Choudki Khushi"]
[Result "1-0"]
[ECO "B00"]
[WhiteElo "1544"]
[BlackElo "1383"]
[Annotator "NA"]
[PlyCount "131"]
[EventDate "2019.01.28"]
[EventType "swiss"]
[EventRounds "10"]
[EventCountry "IND"]
[SourceTitle "playchess.com"]
[Source "ChessBase"]
[SourceQuality "1"]
[TimeControl "5400+30"]

1. e4 {[%emt 0:00:00]} Nc6 {[%emt 0:00:00]} 2. d4 {[%emt 0:00:00]} e5 {[%emt 0:00:00]} 3. d5 {[%emt 0:00:00]} Nce7 {[%emt 0:00:00]} 4. c4 {[%emt 0:00:19]} Ng6 {[%emt 0:00:09]} 5. Nc3 {[%emt 0:00:15]} Bb4 6. Bd3 {[%emt 0:01:16]} Bxc3+ {[%emt 0:03:44]} 7. bxc3 {[%emt 0:00:31]} Nf6 {[%emt 0:00:18]} 8. Ne2 {[%emt 0:00:39]} O-O {[%emt 0:01:02]} 9. O-O {[%emt 0:00:46]} d6 {[%emt 0:00:11]} 10. h3 {[%emt 0:00:42]} Nh5 {[%emt 0:02:24]} 11. f4 {[%emt 0:02:56]} exf4 {[%emt 0:12:58]} 12. Nxf4 {[%emt 0:00:24]} Nhxf4 {[%emt 0:00:46]} 13. Bxf4 {[%emt 0:00:09]} Nxf4 {[%emt 0:01:06]} 14. Rxf4 {[%emt 0:00:08]} Qg5 {[%emt 0:01:35]} 15. Qf3 {[%emt 0:03:38]} f6 {[%emt 0:08:59]} 16. h4 {[%emt 0:00:46]} Qe5 {[%emt 0:01:28]} 17. Bc2 {[%emt 0:00:32]} Bd7 {[%emt 0:01:19]} 18. Rf1 {[%emt 0:01:20]} Rae8 {[%emt 0:12:28]} 19. g4 {[%emt 0:10:04]} Qe7 {[%emt 0:01:28]} 20. Kg2 {[%emt 0:04:19]} g5 {[%emt 0:03:18]} 21. Rxf6 {[%emt 0:00:27]} Rxf6 {[%emt 0:01:49]} 22. Qxf6 {[%emt 0:00:09]} Qxf6 {[%emt 0:00:56]} 23. Rxf6 {[%emt 0:00:57]} Bxg4 {[%emt 0:00:32]} 24. hxg5 {[%emt 0:00:36]} Be2 {[%emt 0:03:34]} 25. c5 {[%emt 0:00:14]} dxc5 {[%emt 0:00:59]} 26. Kf2 {[%emt 0:00:38]} Bc4 {[%emt 0:00:54]} 27. a3 {[%emt 0:00:27]} Re5 {[%emt 0:08:11]} 28. g6 {[%emt 0:00:18]} hxg6 {[%emt 0:08:03]} 29. Rxg6+ {[%emt 0:00:23]} Kf7 {[%emt 0:03:10]} 30. Rh6 {[%emt 0:00:20]} Kg7 {[%emt 0:00:09]} 31. Rh4 {[%emt 0:01:17]} b5 {[%emt 0:06:07]} 32. Kf3 {[%emt 0:01:11]} a5 {[%emt 0:04:41]} 33. Kf4 {[%emt 0:01:36]} Re7 {[%emt 0:01:28]} 34. Rg4+ {[%emt 0:00:30]} Kf7 {[%emt 0:01:49]} 35. Kf5 {[%emt 0:03:00]} b4 {[%emt 0:02:01]} 36. axb4 {[%emt 0:03:29]} cxb4 {[%emt 0:00:46]} 37. cxb4 {[%emt 0:00:08]} axb4 {[%emt 0:00:16]} 38. Rg3 {[%emt 0:00:07]} Re8 {[%emt 0:06:36]} 39. Rh3 {[%emt 0:01:14]} Rf8 {[%emt 0:01:19]} 40. Ke5 {[%emt 0:01:04]} Ke7 {[%emt 0:02:06]} 41. Kd4 {[%emt 0:02:50]} Rf2 {[%emt 0:00:58]} 42. Rh7+ {[%emt 0:01:05]} Kd8 {[%emt 0:00:11]} 43. Kxc4 {[%emt 0:03:03]} Rxc2+ {[%emt 0:00:14]} 44. Kxb4 {[%emt 0:00:10]} Re2 {[%emt 0:00:19]} 45. Rh4 {[%emt 0:00:13]} Kd7 {[%emt 0:00:24]} 46. Kc5 {[%emt 0:00:07]} Rc2+ {[%emt 0:00:14]} 47. Kd4 {[%emt 0:00:26]} Rg2 {[%emt 0:00:31]} 48. Rh7+ {[%emt 0:00:22]} Kd8 {[%emt 0:00:07]} 49. Ke5 {[%emt 0:01:00]} Rg6 {[%emt 0:00:39]} 50. Kf5 {[%emt 0:00:51]} Rd6 {[%emt 0:00:15]} 51. e5 {[%emt 0:00:37]} Rxd5 {[%emt 0:01:05]} 52. Kf6 {[%emt 0:00:45]} Kc8 {[%emt 0:00:52]} 53. e6 {[%emt 0:01:08]} Rd1 {[%emt 0:01:03]} 54. Rh8+ {[%emt 0:00:12]} Kb7 {[%emt 0:00:36]} 55. e7 {[%emt 0:00:06]} Rf1+ {[%emt 0:00:10]} 56. Kg5 {[%emt 0:00:11]} Rg1+ {[%emt 0:00:32]} 57. Kf4 {[%emt 0:00:06]} Rf1+ {[%emt 0:00:13]} 58. Kg3 {[%emt 0:00:05]} Re1 {[%emt 0:00:23]} 59. e8=Q Rxe8 {[%emt 0:00:05]} 60. Rxe8 {[%emt 0:00:12]} c5 {[%emt 0:00:11]} 61. Kf3 {[%emt 0:00:04]} Kb6 {[%emt 0:00:24]} 62. Ke3 {[%emt 0:00:09]} Kb5 {[%emt 0:00:10]} 63. Kd3 {[%emt 0:00:13]} c4+ {[%emt 0:00:12]} 64. Kc3 {[%emt 0:00:06]} Kc5 {[%emt 0:00:06]} 65. Rc8+ {[%emt 0:00:20]} Kd5 {[%emt 0:00:24]} 66. Rxc4 {[%emt 0:00:05]} 1-0

[Event "2nd Kalyan Dombivali 2019"]
[Site "Kalyan"]
[Date "2019.02.02"]
[Round "9"]
[White "Borase Manoj"]
[Black "Kelaskar, Chinmay"]
[Result "0-1"]
[ECO "D85"]
[WhiteElo "1539"]
[BlackElo "1764"]
[Annotator "NA RC"]
[PlyCount "156"]
[EventDate "2019.01.28"]
[EventType "swiss"]
[EventRounds "10"]
[EventCountry "IND"]
[SourceTitle "playchess.com"]
[Source "ChessBase"]
[SourceQuality "1"]
[TimeControl "5400+30"]

1. d4 {[%emt 0:00:00]} Nf6 {[%emt 0:00:00]} 2. c4 {[%emt 0:00:00]} g6 {[%emt 0:00:00]} 3. Nc3 {[%emt 0:00:02]} d5 {[%emt 0:00:41]} 4. cxd5 {[%emt 0:00:09]} Nxd5 {[%emt 0:00:08]} 5. e4 {[%emt 0:00:04]} Nxc3 {[%emt 0:00:14]} 6. bxc3 {[%emt 0:00:06]} Bg7 {[%emt 0:00:05]} 7. Bg5 {[%emt 0:00:27]} c5 {[%emt 0:00:59]} 8. Nf3 {[%emt 0:00:18]} Nc6 {[%emt 0:00:07]} 9. Bb5 {[%emt 0:02:39]} Qa5 {[%emt 0:05:21]} 10. Bxc6+ {[%emt 0:01:20]} bxc6 {[%emt 0:02:59]} 11. O-O {[%emt 0:00:34]} Bg4 {[%emt 0:01:10]} 12. h3 {[%emt 0:06:50]} Bxf3 {[%emt 0:03:02]} 13. Qxf3 {[%emt 0:00:05]} cxd4 {[%emt 0:00:54]} 14. e5 {[%emt 0:00:14]} Qxc3 {[%emt 0:02:11]} 15. Qe4 {[%emt 0:06:28]} Qc5 {[%emt 0:03:52]} 16. Rac1 {[%emt 0:00:51]} Qd5 {[%emt 0:00:09]} 17. Qxd5 {[%emt 0:03:57]} cxd5 {[%emt 0:00:03]} 18. Rc7 {[%emt 0:00:13]} O-O {[%emt 0:05:56]} 19. Rxe7 {[%emt 0:03:58]} Rfe8 {[%emt 0:01:04]} 20. Rd1 {[%emt 0:00:07]} Bxe5 {[%emt 0:03:11]} 21. Rd7 {[%emt 0:12:20]} Rab8 {[%emt 0:12:58]} 22. Rxa7 {[%emt 0:14:47]} Ra8 {[%emt 0:01:50]} 23. Rd7 {[%emt 0:02:21]} Rxa2 {[%emt 0:00:18]} 24. Rxd5 {[%emt 0:00:07]} f6 {[%emt 0:03:07]} 25. f4 {[%emt 0:12:13]} Bb8 {[%emt 0:07:18]} 26. Bxf6 {[%emt 0:01:22]} Bxf4 {[%emt 0:00:09]} 27. Bxd4 {[%emt 0:04:40]} Ree2 {[%emt 0:00:48]} 28. Kf1 {[%emt 0:05:02]} Rxg2 {[%emt 0:01:33]} 29. Bg1 {[%emt 0:00:06]} Rg3 {[%emt 0:02:21]} 30. R5d3 {[%emt 0:01:24]} Rag2 {[%emt 0:01:13]} 31. Rxg3 {[%emt 0:06:53]} Rxg3 {[%emt 0:00:29]} 32. Bh2 {[%emt 0:00:07]} Rxh3 {[%emt 0:00:19]} 33. Rd8+ {[%emt 0:00:06]} Kf7 {[%emt 0:01:02]} 34. Bxf4 {[%emt 0:03:41]} Rf3+ {[%emt 0:01:30]} 35. Kg2 {[%emt 0:00:07]} Rxf4 {[%emt 0:00:02]} 36. Rd7+ {[%emt 0:00:12]} Kg8 {[%emt 0:00:10]} 37. Kg3 {[%emt 0:00:14]} Rf7 {[%emt 0:00:07]} 38. Rd8+ {[%emt 0:00:26]} Kg7 {[%emt 0:00:06]} 39. Kg4 {[%emt 0:00:07]} h6 {[%emt 0:00:12]} 40. Ra8 {[%emt 0:00:08]} h5+ {[%emt 0:01:11]} 41. Kg3 {[%emt 0:00:33]} Kh6 {[%emt 0:00:18]} 42. Ra6 {[%emt 0:01:52]} Kg5 {[%emt 0:00:09]} 43. Ra5+ {[%emt 0:00:15]} Rf5 {[%emt 0:00:06]} 44. Ra4 {[%emt 0:00:05]} h4+ {[%emt 0:01:23]} 45. Kh3 {[%emt 0:01:03]} Rf3+ {[%emt 0:00:07]} 46. Kg2 {[%emt 0:00:16]} Rf4 {[%emt 0:00:12]} 47. Ra6 {[%emt 0:00:10]} Kh5 {[%emt 0:00:20]} 48. Rb6 {[%emt 0:05:59]} g5 {[%emt 0:00:10]} 49. Kh3 {[%emt 0:02:16]} Rf3+ {[%emt 0:01:01]} 50. Kg2 {[%emt 0:00:12]} Kg4 {[%emt 0:00:10]} 51. Rb4+ {[%emt 0:01:58]} Rf4 {[%emt 0:00:08]} 52. Rb3 {[%emt 0:00:15]} h3+ {[%emt 0:00:32]} 53. Kh2 {[%emt 0:06:13]} Rf2+ {[%emt 0:00:09]} 54. Kg1 {[%emt 0:00:25]} Rf3 {[%emt 0:00:14]} 55. Rb1 {[%emt 0:00:11]} Kg3 {[%emt 0:00:38]} 56. Rd1 {[%emt 0:00:25]} g4 {[%emt 0:00:28]} 57. Ra1 {[%emt 0:00:10]} Kh4 {[%emt 0:02:45]} 58. Ra4 {[%emt 0:00:18]} Kg5 {[%emt 0:01:03]} 59. Ra5+ {[%emt 0:00:27]} Rf5 {[%emt 0:00:13]} 60. Ra8 {[%emt 0:00:20]} g3 {[%emt 0:01:17]} 61. Ra4 {[%emt 0:01:28]} h2+ {[%emt 0:01:08]} 62. Kg2 {[%emt 0:00:07]} Rf2+ {[%emt 0:01:08]} 63. Kxg3 {[%emt 0:00:21]} h1=Q {[%emt 0:00:33]} 64. Kxf2 {[%emt 0:00:56]} Qd1 {[%emt 0:00:13]} 65. Re4 {[%emt 0:00:32]} Qd3 {[%emt 0:00:30]} 66. Re3 {[%emt 0:00:11]} Qd4 {[%emt 0:00:11]} 67. Kf3 {[%emt 0:00:17]} Kf5 {[%emt 0:00:22]} 68. Ke2 {[%emt 0:01:12]} Kf4 {[%emt 0:00:11]} 69. Rf3+ {[%emt 0:00:14]} Ke4 {[%emt 0:00:10]} 70. Rg3 {[%emt 0:00:22]} Qb2+ {[%emt 0:00:18]} 71. Kf1 {[%emt 0:00:08]} Qh2 {[%emt 0:00:18]} 72. Rg2 {[%emt 0:00:58]} Qh3 {[%emt 0:00:09]} 73. Kg1 {[%emt 0:00:06]} Qe3+ {[%emt 0:02:33]} 74. Kh1 {[%emt 0:00:30]} Qe1+ {[%emt 0:00:35]} 75. Kh2 {[%emt 0:00:06]} Kf3 {[%emt 0:00:32]} 76. Rc2 {[%emt 0:01:41]} Qh4+ {[%emt 0:01:19]} 77. Kg1 {[%emt 0:00:06]} Qd4+ {[%emt 0:00:54]} 78. Kh2 {[%emt 0:00:11]} Qd6+ {[%emt 0:00:08]} 0-1